Cogmind - Beta 17 @@@ ROGUE MODE // 2026.07.08 @ 23:42:03 Player: IsAway Result: Destroyed by DAS Turret with DAS Cannon Performance ------------- Evolutions (0) 0 Regions Visited (3) 600 Robots Destroyed (12) 60 Value Destroyed (223) 223 Prototype IDs (23) 460 Alien Tech Used (0) 0 Bonus (300) 300 TOTAL SCORE: 1643 Bonus ------- Aligned with FarCom 300 Cogmind --------- Core Integrity 0/250 Matter 248/300 Energy 125/125 System Corruption 2% Temperature Cool (0) Movement Rolling (110) Ox2 Location -10/Exiles Parts ------- > --- POWER (1) -------- Light Ion Engine > --- PROPULSION (2) --- Wheel Wheel > --- UTILITY (2) ------ High-capacity Storage Unit Seismic Detector > --- WEAPON (2) ------- Slug Cannon > --- INVENTORY (20) --- Fission Core Compact Wheel Flight Unit Flight Unit Large Storage Unit High-capacity Battery (250) Large Matter Pod (66) Improved Terrain Scanner EM Pulse Gun XL Autogun Array Grenade Launcher Mining Laser Mining Laser Peak State ------------ > --- POWER ------------ Light Ion Engine > --- PROPULSION ------- Wheel Wheel > --- UTILITY ---------- High-capacity Storage Unit Seismic Detector > --- WEAPON ----------- Slug Cannon > --- INVENTORY -------- Fission Core Compact Wheel Flight Unit Flight Unit Large Storage Unit High-capacity Battery Large Matter Pod Improved Terrain Scanner EM Pulse Gun XL Autogun Array Grenade Launcher Mining Laser Mining Laser [Rating: 14] Favorites ----------- Power Light Ion Engine Engine Light Ion Engine Propulsion Wheel Wheel Wheel Utility Seismic Detector Device Seismic Detector Storage Large Storage Unit Weapon Grenade Launcher Energy Gun EM Pulse Gun Ballistic Cannon Slug Cannon Launcher Grenade Launcher Special Weapon Mining Laser Build | -11 -10 -10 -10 ------- Run | Yrd Mat Min Exi Slots Evolved . | . . . . Power . | . . . . Propulsion . | . . . . Utility . | . . . . Weapon . | . . . . Parts Attached 13 | 6 3 2 2 Power 2 | 1 . 1 . Engine 2 | 1 . 1 . Core . | . . . . Reactor . | . . . . Propulsion 3 | 2 . . 1 Treads . | . . . . Leg . | . . . . Wheel 3 | 2 . . 1 Hover . | . . . . Flight . | . . . . Utility 4 | 2 1 . 1 Device 1 | 1 . . . Storage 3 | 1 1 . 1 Processor . | . . . . Hackware . | . . . . Protection . | . . . . Artifact . | . . . . Weapon 4 | 1 2 1 . Energy Gun 1 | 1 . . . Energy Cannon . | . . . . Ballistic Gun . | . . . . Ballistic Cannon 1 | . . 1 . Launcher 1 | . 1 . . Special Weapon 1 | . 1 . . Impact Weapon . | . . . . Slashing Weapon . | . . . . Piercing Weapon . | . . . . Special Melee Weapon . | . . . . Unidentified Prototypes . | . . . . Parts Lost . | . . . . Power . | . . . . Propulsion . | . . . . Utility . | . . . . Weapon . | . . . . Highest Loss Streak . | . . . . To Critical Strikes . | . . . . Average Backups 10 | 1 5 9 13 Power 1 | . . . 2 Propulsion 3 | . 2 3 3 Utility 2 | . 1 2 4 Weapon 3 | . 2 2 4 Tool/Special . | . . . . Unused Backups 11 | . . . 11 Power 2 | . . . 2 Propulsion 3 | . . . 3 Utility 4 | . . . 4 Weapon 2 | . . . 2 Tool/Special . | . . . . Average Slot Usage (%) 91 | . 97 100 85 Engine 14 | . 14 14 14 Wheel 28 | . 28 28 28 Device 14 | . 14 14 14 Storage 14 | . 14 14 14 Energy Gun 3 | . 14 3 . Ballistic Cannon 7 | . . 10 7 Launcher 8 | . 6 14 5 Special Weapon 1 | . 5 . . Peak Build Rating 14 | 6 7 11 14 Average Rating 9 | 4 6 10 10 On Entrance 6 | . 6 7 11 Avg Prop Armor Cover (%) . | . . . . Naked Turns . | . . . . Heaviest Build 51 | 11 29 34 51 Greatest Support 20 | 20 20 20 20 Greatest Overweight (x) 2 | . 1 1 2 Average Overweight (x) . | . . 1 1 Largest Inventory Capacity 20 | 8 15 15 20 Average Capacity 14 | 7 14 15 15 Most Carried 16 | 5 7 11 16 Average Carried 10 | 1 5 9 14 Final Capacity 20 | 8 15 15 20 Final Carried 16 | 5 6 11 16 Class Distribution -------------------- 100% | Mutant Dominant Class ---------------- Mutant | -10/Materials Mutant | -10/Mines Mutant | -10/Exiles Resources | -11 -10 -10 -10 ----------- Run | Yrd Mat Min Exi Matter Collected 448 | 260 32 156 . Remotely . | . . . . Salvage Created 376 | 213 55 108 . Parts 27 | 15 4 8 . Haulers Intercepted . | . . . . Recyclers Shooed . | . . . . Parts Field Recycled . | . . . . Retrieved Matter . | . . . . Parts Self-Destructed . | . . . . Prevented . | . . . . Parts Restored . | . . . . Kills | -11 -10 -10 -10 ------- Run | Yrd Mat Min Exi Combat Hostiles Destroyed 7 | . 2 5 . Guns 1 | . . 1 . Cannons 1 | . . 1 . AOE 5 | . 2 3 . Classes Destroyed 4 | 2 1 1 . Tunneler 4 | 4 . . . Recycler 1 | 1 . . . Swarmer 3 | . . 3 . Grunt 4 | . 2 2 . Best Kill Streak 4 | 4 2 3 . Combat Bots Only 3 | . 2 3 . Max Kills in Single Turn 3 | 1 1 3 . Gunslinging . | . . . . Exploded 2 | . 1 2 . Melee . | . . . . Uniques/NPCs Destroyed . | . . . . Combat | -11 -10 -10 -10 -------- Run | Yrd Mat Min Exi Hostile Shots Fired 22 | . 9 7 6 Missed 5 | . 3 2 . Hits 17 | . 6 5 6 Projectile 17 | . 6 5 6 Critical Strikes 1 | . . . 1 Damage Taken 422 | . 123 50 249 Core 256 | . 59 29 168 Absorbed by Shields . | . . . . Core Remaining (%) 100 | 100 . . . Volleys Fired 18 | 10 5 3 . Largest 2 | 1 2 2 . Hottest 140 | 40 140 70 . Shots Fired 28 | 10 10 6 2 Gun 17 | 10 5 2 . Cannon 4 | . . 2 2 Launcher 5 | . 3 2 . Special 2 | . 2 . . Kinetic 4 | . . 2 2 Thermal 2 | . 2 . . Explosive 5 | . 3 2 . Electromagnetic 17 | 10 5 2 . Robot Hit Streak 5 | 5 4 5 . Robot Miss Streak 4 | 3 2 3 4 Penetration Max . | . . . . Secondary Targets . | . . . . Shots Hit Robots 12 | 7 4 1 . Core Hits 13 | 5 3 5 . Critical Kills . | . . . . Critical Parts Destroyed . | . . . . Critical Strikes . | . . . . Melee Attacks . | . . . . Impact . | . . . . Slashing . | . . . . Piercing . | . . . . Sneak Attacks . | . . . . Combat Hostiles . | . . . . Follow-up Attacks . | . . . . Damage Inflicted 407 | 92 153 162 . Guns 130 | 92 28 10 . Cannons 29 | . . 29 . Explosions 248 | . 125 123 . Melee . | . . . . Ramming . | . . . . Kinetic 29 | . . 29 . Thermal . | . . . . Explosive 248 | . 125 123 . Electromagnetic 130 | 92 28 10 . Impact . | . . . . Slashing . | . . . . Piercing . | . . . . Highest Corruption 2 | . 2 2 2 Average Corruption 2 | . 2 2 2 Corruption Purged . | . . . . Corruption Blocked . | . . . . Effects 12 | . 1 4 7 Message Errors 4 | . 1 2 1 Matter Fused 1 | . . . 1 Energy Discharges 3 | . . 1 2 Data Loss (minor) 1 | . . . 1 Misfires 3 | . . 1 2 Overload Shots . | . . . . Overflow Damage . | . . . . Projectiles . | . . . . Explosions . | . . . . Melee . | . . . . Knockbacks . | . . . . Impact . | . . . . Kinetic . | . . . . Secondary . | . . . . Self-Inflicted Damage 51 | . 51 . . Shots 3 | . 3 . . Rammed . | . . . . Targets Rammed . | . . . . Kicked . | . . . . Crushed . | . . . . Highest Temperature 45 | . 45 30 . Average Temperature 22 | . 25 14 . Received Heat Transfer 63 | . 42 21 . Siege Activations . | . . . . Martial Activations . | . . . . Shielding Activations . | . . . . Robots Disrupted . | . . . . Combat Hostiles . | . . . . Robots Corrupted . | . . . . Combat Hostiles . | . . . . Parts Fried . | . . . . Impact Corruptions . | . . . . Robots Melted . | . . . . Combat Hostiles . | . . . . Parts Melted . | . . . . Heat Transferred . | . . . . Parts Sabotaged . | . . . . Parts Stolen . | . . . . Parts Stripped . | . . . . Power Chain Reactions . | . . . . Alert | -11 -10 -10 -10 ------- Run | Yrd Mat Min Exi Maximum Alert Level . | . . . . Low Security (%) 100 | 100 100 100 . Level 1 . | . . . . Level 2 . | . . . . Level 3 . | . . . . Level 4 . | . . . . Level 5 . | . . . . High Security . | . . . . Max Security . | . . . . Peak Influence 89 | 15 66 89 . Initial 12 | . 3 12 . Average 33 | 3 30 47 . Influence Increases 271 | 25 113 133 . Destroy 0b10 Robot/C 140 | . 40 100 . Destroy 0b10 Robot/NC 25 | 25 . . . Destroy Leader 20 | . . 20 . Successful Hack 15 | . 15 . . Disable Machine 15 | . 15 . . Destroy Structure 26 | . 13 13 . Lose Combat Pursuer 30 | . 30 . . Influence Decreases 271 | 20 85 141 25 Entered New Map 48 | . 2 21 25 Time Decay 223 | 20 83 120 . Squads Dispatched 1 | . 1 . . Investigation . | . . . . Extermination . | . . . . Reinforcement 1 | . 1 . . Assault . | . . . . Garrison . | . . . . Intercept . | . . . . Searches Triggered . | . . . . Construction Impeded . | . . . . Haulers Reinforced . | . . . . Active Scanning Responses . | . . . . Cargo Convoy Interrupts . | . . . . Stealth | -11 -10 -10 -10 --------- Run | Yrd Mat Min Exi Distress Signals 1 | . 1 . . Communications Jammed . | . . . . Distress Signals . | . . . . Times Spotted 19 | . 6 5 8 Peak Tracking Total 13 | . 4 3 13 Tactical Retreats 1 | . 1 . . Traps | -11 -10 -10 -10 ------- Run | Yrd Mat Min Exi Traps Triggered 1 | . 1 . . Indirectly . | . . . . Trap Hack Attempts . | . . . . Triggered . | . . . . Disarmed . | . . . . Reprogrammed 5 | . 5 . . Reused . | . . . . Traps Extracted . | . . . . Installed . | . . . . Triggered . | . . . . Machines | -11 -10 -10 -10 ---------- Run | Yrd Mat Min Exi Machines Disabled 2 | . 1 . 1 Max in Single Turn 1 | . 1 . 1 Machines Repaired . | . . . . Machines Dismantled . | . . . . Machines Sabotaged . | . . . . Overloaded Fab Kills . | . . . . Hacking | -11 -10 -10 -10 --------- Run | Yrd Mat Min Exi Machines Accessed 6 | . 3 . 3 Terminals 3 | . 3 . . Fabricators . | . . . . Repair Stations . | . . . . Recycling Units . | . . . . Scanalyzers . | . . . . Garrison Access . | . . . . Total Hacks 34 | . 9 . 25 Successful 30 | . 5 . 25 Failed 4 | . 4 . . Catastrophic 1 | . 1 . . Database Lockouts . | . . . . Manual 6 | . 2 . 4 Terminals 9 | . 9 . . Fabricators . | . . . . Repair Stations . | . . . . Recycling Units . | . . . . Scanalyzers . | . . . . Garrison Access . | . . . . Terminal Hacks 30 | . 5 . 25 Record 24 | . . . 24 Robot Analysis 1 | . 1 . . Branch Access Points 1 | . 1 . . Emergency Access Points 1 | . 1 . . Reprogram Traps 1 | . 1 . . Zone Layout 1 | . 1 . . Proto ID Catalog 1 | . . . 1 Fabricator Hacks . | . . . . Repair Station Hacks . | . . . . Recycling Unit Hacks . | . . . . Scanalyzer . | . . . . Garrison Access Hacks . | . . . . Unauthorized Hacks . | . . . . Terminals . | . . . . Fabricators . | . . . . Repair Stations . | . . . . Recycling Units . | . . . . Scanalyzers . | . . . . Garrison Access . | . . . . Data Cores Recovered . | . . . . Used . | . . . . Hacking Detections 2 | . 2 . . Full Trace Events . | . . . . Feedback Events . | . . . . Feedback Blocked . | . . . . Robot Schematics Acquired . | . . . . Robots Built . | . . . . Authchips . | . . . . Time . | . . . . Total Robot Build Rating . | . . . . Part Schematics Acquired . | . . . . Parts Built . | . . . . Authchips . | . . . . Time . | . . . . Total Part Build Rating . | . . . . Part Studies Acquired . | . . . . Parts Repaired . | . . . . Time . | . . . . Parts Recycled . | . . . . Recycled Matter . | . . . . Retrieved Matter . | . . . . Retrieved Components . | . . . . Parts Scanalyzed . | . . . . Part Schematics Acquired . | . . . . Parts Damaged . | . . . . Bothacking | -11 -10 -10 -10 ------------ Run | Yrd Mat Min Exi Used RIF Installer . | . . . . Robots Hacked . | . . . . Non-combat . | . . . . Combat . | . . . . Robot Hacks Applied . | . . . . Relay Couplers Released . | . . . . Fabnet Peak Effective % . | . . . . Robots Rewired . | . . . . Allies Hacked . | . . . . Hacks Repelled . | . . . . Allies | -11 -10 -10 -10 -------- Run | Yrd Mat Min Exi Total Allies . | . . . . Largest Group . | . . . . Highest-Rated Group . | . . . . Highest-Rated Ally . | . . . . Total Orders . | . . . . Ally Attacks . | . . . . Total Damage . | . . . . Kills . | . . . . Allies Corrupted . | . . . . Allies Melted . | . . . . Intel | -11 -10 -10 -10 ------- Run | Yrd Mat Min Exi Active Infowar (turns) 935 | 4 191 241 499 Seismic 935 | 4 191 241 499 Robot Analysis Total 1 | . 1 . . Derelict Logs Recovered 1 | . . 1 . Drone Launches . | . . . . Drone Recoveries . | . . . . Exploration | -11 -10 -10 -10 ------------- Run | Yrd Mat Min Exi Turns Passed 1020 | 89 191 241 499 Spaces Moved 959 | 70 167 229 493 Core 1 | 1 . . . Treads . | . . . . Legs . | . . . . Wheels 958 | 69 167 229 493 Hover . | . . . . Flight . | . . . . Fastest Speed 50 | 50 80 95 95 Average Speed 94 | 79 94 95 97 Slowest Speed 110 | 80 95 95 110 Overloaded Moves . | . . . . Propulsion Burnouts . | . . . . Robots Hopped . | . . . . Potential Cave-ins . | . . . . Cave-ins Triggered . | . . . . Exploration Rate (%) 44 | 3 35 61 78 Regions Visited 3 Branch Regions 2 Pre-discovered Areas 1 | . . . 1 Known Exits Taken 1 | . 1 . . Unknown Exits Taken 2 | 1 . 1 . Scrap Searched 1 | . . 1 . Spaces Dug 2 | . 2 . . Terrain Destroyed 26 | . 12 13 1 Melee . | . . . . Projectile 4 | . 2 1 1 AOE 22 | . 10 12 . Terrain Rammed . | . . . . Walls Destroyed . | . . . . Machines Disabled . | . . . . Actions | -11 -10 -10 -10 --------- Run | Yrd Mat Min Exi Total 1035 | 90 185 245 515 Wait 22 | . 7 7 8 Move 956 | 69 166 228 493 Hop . | . . . . Pick Up 17 | 5 3 4 5 Fast Attach 6 | 6 . . . Attach 2 | . 1 . 1 Detach 2 | . . . 2 Swap 7 | . 2 3 2 Drop 5 | . 1 . 4 Fire 18 | 10 5 3 . Melee . | . . . . Ram . | . . . . Kick . | . . . . Crush . | . . . . Escape Stasis . | . . . . Rewire . | . . . . Trap . | . . . . Miscellaneous . | . . . . Route ------- -11/Scrapyard -10/Materials (discovered 3 exits: [*Mat] / *Min x2) -10/Mines -10/Exiles (discovered 1 exit: [*Min]) History --------- Turn | Location | Event 14 | -11/Scrapyard | Discovered new exit (range 15) 90 | -11/Scrapyard | Entered Materials 176 | -10/Materials | Identified exit to Mines 230 | -10/Materials | Discovered new exit (range 4) 281 | -10/Materials | Entered Mines 318 | -10/Mines | Build established: Mutant 332 | -10/Mines | A weapon hastily lodged in a ceiling crevice suddenly fell to the ground 517 | -10/Mines | Deemed a non-threat by the Exiles lab entrance 518 | -10/Mines | Discovered new exit (range 5) 522 | -10/Mines | Entered Exiles 550 | -10/Exiles | Met 8R-AWN 568 | -10/Exiles | Met EX-HEX 620 | -10/Exiles | Met EX-DEC 642 | -10/Exiles | Learned location of Zion (-6) 724 | -10/Exiles | Discovered new exit (range 14) 798 | -10/Exiles | Visited The Gauntlet 852 | -10/Exiles | Met EX-BIN 870 | -10/Exiles | Aligned with FarCom system 871 | -10/Exiles | Given EX-Vault access code 934 | -10/Exiles | Opened EX-Vault 942 | -10/Exiles | Found XL Autogun Array 983 | -10/Exiles | Warned to stay clear of 0b10 Research branches 1006 | -10/Exiles | Attacked by the Exiles 1016 | -10/Exiles | Core integrity fell below 50% 1021 | -10/Exiles | Destroyed by DAS Turret with DAS Cannon Last Messages --------------- the 0b10 Research branches, since the FarCom signals could be picked up there, but you're welcome to try if you really want to. And if we have to leave here due to unforeseen circumstances, don't worry the FarCom system will continue to maintain contact via our distributed network. EX-BIN: And don't even think about spreading that code around. We're gonna change it right after you leave. Most certainly not to something like 1234 which I did last time as a little joke and some thief managed to sneak in here and steal a few of HEX's prototypes. System corrupted: FCS attempts to trigger Slug Cannon. System corrupted: Slug Cannon misfires. FarCom Aligner disabled. EXILES: Hostile robot within lab perimeter. Defensive protocols time, folks! EX-BIN: "I just want to science!" Map ----- +----------------------------------------------------+ | ??????????????????????????#" #????????? | | ??????????????????????????#" ## #????????? | | ??????????????????????????#""""""## #?######## | | ??????????????????????????##"###### #?#""""""" | | ?????????????????????????? "?????# #?#""""""" | | ?????????????????????????""" ?????# #?#""""""" | | ????????????????????????#""" ????## ###"" """" | | ?#######??????????????????"" ????#" """" | | ?#!! "#???????????????????##????#" """ | | ?# "#?????????????????????????#" """ | | ?# "#?????????????????????????#" """ | | ## ""#??????????########???????#" "" | | #" ""#??????????# """#???????#" """ | | #" ""#??????????#"" """#???????## """ | | "" ###??????????#"" #????????# """ | | #????????????#"" #????????#" "X" """ | | ##???????????#"" "#????????#" """ | | "#???????????# ""#????????#" """"""""" | | ###?????????#"" ""#???????##" ########## | | ##????????### ###??????##"" #????????? | | ##"" ######???### ###?######"" #????????? | | ?##" """#####X# #"###""""""" ##???????? | | ??#" """""" " "" ##????### | | ??#"# "" """ %%" #####""" | | ??#### " " " " | | ?????### @ % a " | | ???????### a aa | | ?????????## | | ??????????## aa | | ???????????##" | | ????????????#""" """""" | | ???????????##" ######""" | | ???????????#"" ""##????#####""" | | ??????????##""" c"""##?????????##""" | | ??????????#""" """##???????????#"""" | | ??????????#""" ""#???????????##"" | | ??????????#"" ###?####??####"""" | | ??????????#""" ## ####""" | | ??????????#"" """" | | ??????????##"" | | ???????????#"""" | | ???????????## | | ????????????#" " "" | | ????????????#"""" ""## ##""" " " " | | ????????????#"" ""#### ??#####""" "" | | ????????????#" """"##??#???????###"""" | | ????????????#""" """#?????????????##### | | ????????????## ""##?????????????????? | | ?????????????#"" """##??????????????????? | | ?????????????##""" ##???????????????????? | +----------------------------------------------------+ Best States ------------- Heat Dissipation 25 Energy Generation 10 Energy Capacity 125 Matter Stores 300 Matter Capacity 300 Sight Range 16 Terrain Scan Density 10 Evasion (%) 44 Item Schematics ----------------- None Robot Schematics ------------------ None Fabricated ------------ Nothing Repaired ---------- Nothing Studied --------- None Alien Tech Used ----------------- None Achievements -------------- Sixth Sense Challenges ------------ None Game ------ Seed DefenseRemoteCore Manual? 0 Play Time 00:20:29 Cumulative 15.0 hours Start 2026.07.08 @ 23:18:06 End 2026.07.08 @ 23:42:03 Sessions 1 Manual Loads 0 Difficulty Rogue Special Mode None Game No. 22 Rogue 22 Adventurer 0 Explorer 0 Win Type - Total 0 Types 0/0/0/0/0/0/0/0/0/0 Lore% 18 Gallery% 13 Achievement% 13 Wizard Run 0 Options --------- Layout 1 ASCII 0 Keyboard 0 Movement Mouse Keybinds 0 Fullscreen 1 Font 18/SmallcapsGlow Map View 51x41 Zoom Use 0% Tactical HUD 0 Map Filters NONE Filters NONE Steam 1 RUN: adebcf46-82f9-45cf-86ca-4e483c783777